[Event "41st Jacques-Lemans-Open 2022"]
[Site "St. Veit/Glan"]
[Date "2022.07.16"]
[Round "9.2"]
[White "Windhager, Hannes"]
[Black "Praznik, Niko"]
[Result "1/2-1/2"]
[ECO "B06"]
[WhiteElo "2244"]
[BlackElo "2325"]
[Annotator "ChessBase"]
[PlyCount "115"]
[EventDate "2022.07.09"]
[EventType "swiss"]
[EventCountry "AUT"]
[SourceTitle "playchess.com"]
[Source "ChessBase"]
[SourceQuality "1"]
[TimeControl "40/5400+30:1800+30"]

1. e4 {[%emt 0:00:04]} g6 {[%emt 0:01:15]} 2. d4 {[%emt 0:00:11]} Bg7 {[%emt 0:00:13]} 3. Nc3 {[%emt 0:00:08]} d6 {[%emt 0:01:01]} 4. Be3 {[%emt 0:00:16]} Nd7 {[%emt 0:00:25]} 5. Qd2 {[%emt 0:01:01]} a6 {[%emt 0:00:14]} 6. O-O-O {[%emt 0:01:02]} b5 {[%emt 0:00:44]} 7. f3 {[%emt 0:01:03]} Bb7 {[%emt 0:00:41]} 8. h4 {[%emt 0:00:32]} h5 {[%emt 0:02:51]} 9. Nh3 {[%emt 0:00:29]} Ngf6 {[%emt 0:00:47]} 10. Ng5 {[%emt 0:00:55]} Rc8 {[%emt 0:00:31]} 11. e5 {[%emt 0:17:14]} dxe5 {[%emt 0:07:10]} 12. dxe5 {[%emt 0:00:15]} Nxe5 {[%emt 0:00:19]} 13. Qxd8+ {[%emt 0:17:00]} Rxd8 {[%emt 0:00:32]} 14. Rxd8+ {[%emt 0:00:04]} Kxd8 {[%emt 0:00:04]} 15. Bd4 {[%emt 0:01:04]} Nfd7 {[%emt 0:12:48]} 16. Nxf7+ {[%emt 0:00:20]} Nxf7 {[%emt 0:00:19]} 17. Bxg7 {[%emt 0:00:05]} Rg8 {[%emt 0:00:36]} 18. Bd4 {[%emt 0:00:09]} Nd6 {[%emt 0:02:25]} 19. Bd3 {[%emt 0:13:09]} c5 {[%emt 0:04:26]} 20. Be3 {[%emt 0:00:28]} c4 {[%emt 0:00:48]} 21. Be2 {[%emt 0:01:52]} Nf5 {[%emt 0:00:48]} 22. Bg5 {[%emt 0:02:11]} Nf6 {[%emt 0:02:03]} 23. a4 {[%emt 0:04:48]} Bc6 {[%emt 0:02:41]} 24. Rd1+ {[%emt 0:03:19]} Kc7 {[%emt 0:04:48]} 25. g4 {[%emt 0:06:22]} hxg4 {[%emt 0:06:13]} 26. fxg4 {[%emt 0:00:05]} Nd6 {[%emt 0:00:41]} 27. axb5 {[%emt 0:06:04]} axb5 {[%emt 0:00:08]} 28. Bf4 {[%emt 0:04:25]} Rh8 {[%emt 0:05:11]} 29. Bg3 {[%emt 0:04:30]} Ra8 {[%emt 0:00:52]} 30. g5 {[%emt 0:02:17]} Nfe4 {[%emt 0:02:57]} 31. Nxe4 {[%emt 0:00:23]} Bxe4 {[%emt 0:00:02]} 32. Bg4 {[%emt 0:03:11]} Ra1+ {[%emt 0:06:55]} 33. Kd2 {[%emt 0:00:05]} Rxd1+ {[%emt 0:00:03]} 34. Bxd1 {[%emt 0:00:39]} Kc6 {[%emt 0:01:01]} 35. Ke3 {[%emt 0:02:40]} Bd5 {[%emt 0:02:03]} 36. Kf4 {[%emt 0:03:43]} b4 {[%emt 0:03:37]} 37. Ke5 {[%emt 0:02:13]} Nf5 {[%emt 0:11:36]} 38. Bf2 {[%emt 0:00:40]} Nd6 {[%emt 0:00:28]} 39. Be1 {[%emt 0:03:24]} Nf7+ {[%emt 0:01:02]} 40. Kd4 {[%emt 0:00:50]} e5+ {[%emt 0:00:26]} 41. Ke3 {[%emt 0:30:09]} Kc5 {[%emt 0:30:44]} 42. Bg3 {[%emt 0:00:00]} Kd6 {[%emt 0:00:00]} 43. Be1 {[%emt 0:00:00]} Kc5 {[%emt 0:00:00]} 44. Bg4 {[%emt 0:00:00]} Nd8 {[%emt 0:00:00]} 45. Bg3 {[%emt 0:00:00]} Kd6 {[%emt 0:00:00]} 46. c3 {[%emt 0:00:00]} bxc3 {[%emt 0:00:00]} 47. bxc3 {[%emt 0:00:00]} Be6 {[%emt 0:00:00]} 48. Bf3 {[%emt 0:00:00]} Bf5 {[%emt 0:00:00]} 49. Be2 {[%emt 0:00:00]} Kd5 {[%emt 0:00:00]} 50. h5 {[%emt 0:00:00]} gxh5 {[%emt 0:00:00]} 51. Bxh5 {[%emt 0:00:00]} Bh7 {[%emt 0:00:00]} 52. Bh4 {[%emt 0:02:09]} Bg8 {[%emt 0:00:00]} 53. Bf3+ {[%emt 0:00:49]} Kd6 {[%emt 0:00:00]} 54. Be4 {[%emt 0:00:30]} Ne6 {[%emt 0:00:00]} 55. g6 {[%emt 0:00:50]} Nf4 {[%emt 0:00:00]} 56. Bg5 {[%emt 0:01:01]} Nd5+ {[%emt 0:00:00]} 57. Bxd5 {[%emt 0:01:23]} Kxd5 {[%emt 0:00:00]} 58. Bf6 {[%emt 0:00:35]} 1/2-1/2

[Event "41st Jacques-Lemans-Open 2022"]
[Site "St. Veit/Glan"]
[Date "2022.07.16"]
[Round "9.3"]
[White "Hechl, Gerald"]
[Black "Hresc, Vladimir"]
[Result "1-0"]
[ECO "D00"]
[WhiteElo "2222"]
[BlackElo "2308"]
[Annotator "ChessBase"]
[PlyCount "75"]
[EventDate "2022.07.09"]
[EventType "swiss"]
[EventCountry "AUT"]
[SourceTitle "playchess.com"]
[Source "ChessBase"]
[SourceQuality "1"]
[TimeControl "40/5400+30:1800+30"]

1. d4 {[%emt 0:00:01]} d5 2. Nc3 {[%emt 0:00:51]} g6 {[%emt 0:03:58]} 3. e4 {[%emt 0:03:16]} dxe4 {[%emt 0:00:11]} 4. Nxe4 Bg7 {[%emt 0:00:10]} 5. c3 {[%emt 0:01:37]} Nd7 {[%emt 0:03:18]} 6. Bc4 Ndf6 7. Ng5 {[%emt 0:04:14]} Nd5 {[%emt 0:06:47]} 8. N1f3 {[%emt 0:08:11]} Ngf6 {[%emt 0:17:28]} 9. O-O {[%emt 0:02:54]} O-O 10. Ne5 h6 {[%emt 0:05:50]} 11. Ngf3 {[%emt 0:01:07]} Be6 {[%emt 0:01:32]} 12. Re1 {[%emt 0:02:41]} Qd6 {[%emt 0:03:23]} 13. Qe2 {[%emt 0:01:48]} Nb6 {[%emt 0:04:29]} 14. Bd3 {[%emt 0:03:28]} Bf5 {[%emt 0:11:01]} 15. Bxf5 {[%emt 0:07:15]} gxf5 {[%emt 0:04:13]} 16. c4 {[%emt 0:00:52]} c5 {[%emt 0:05:29]} 17. b4 {[%emt 0:05:41]} cxd4 {[%emt 0:01:46]} 18. c5 {[%emt 0:00:10]} Qd8 {[%emt 0:01:05]} 19. cxb6 {[%emt 0:00:16]} Qxb6 {[%emt 0:00:08]} 20. Qc4 {[%emt 0:03:39]} Ne4 {[%emt 0:05:20]} 21. Nd7 {[%emt 0:00:53]} Qd6 {[%emt 0:01:10]} 22. Nxf8 {[%emt 0:02:16]} d3 {[%emt 0:03:01]} 23. Rb1 {[%emt 0:01:29]} Rxf8 {[%emt 0:02:23]} 24. Bd2 {[%emt 0:02:12]} Rd8 {[%emt 0:04:05]} 25. Rb3 {[%emt 0:04:13]} e5 {[%emt 0:03:05]} 26. Rxe4 {[%emt 0:03:15]} fxe4 {[%emt 0:00:03]} 27. Qxe4 {[%emt 0:00:04]} Qe6 {[%emt 0:00:49]} 28. g4 {[%emt 0:06:31]} Qa6 {[%emt 0:00:50]} 29. a3 {[%emt 0:01:55]} Qe6 {[%emt 0:00:45]} 30. Rc3 {[%emt 0:01:18]} h5 {[%emt 0:01:05]} 31. h3 {[%emt 0:02:02]} hxg4 {[%emt 0:03:57]} 32. hxg4 {[%emt 0:00:10]} Bf6 {[%emt 0:02:12]} 33. Kg2 {[%emt 0:02:29]} Rd7 {[%emt 0:04:23]} 34. Be3 {[%emt 0:01:39]} b6 {[%emt 0:00:21]} 35. Nd2 {[%emt 0:00:32]} Rd8 {[%emt 0:01:13]} 36. f3 {[%emt 0:02:23]} Qd7 {[%emt 0:01:27]} 37. Rc6 {[%emt 0:03:33]} Bg7 {[%emt 0:00:39]} 38. Qc4 {[%emt 0:01:16]} 1-0

[Event "41st Jacques-Lemans-Open 2022"]
[Site "St. Veit/Glan"]
[Date "2022.07.16"]
[Round "9.4"]
[White "Vojinov, Danijel"]
[Black "Koelber, Daniel"]
[Result "1/2-1/2"]
[ECO "A00"]
[WhiteElo "2201"]
[BlackElo "2176"]
[Annotator "ChessBase"]
[PlyCount "234"]
[EventDate "2022.07.09"]
[EventType "swiss"]
[EventCountry "AUT"]
[SourceTitle "playchess.com"]
[Source "ChessBase"]
[SourceQuality "1"]
[TimeControl "40/5400+30:1800+30"]

1. b4 {[%emt 0:00:05]} e5 {[%emt 0:01:39]} 2. a3 {[%emt 0:00:09]} d5 {[%emt 0:02:00]} 3. Bb2 {[%emt 0:00:07]} Bd6 {[%emt 0:01:22]} 4. Nf3 {[%emt 0:00:20]} Qe7 {[%emt 0:01:29]} 5. e3 {[%emt 0:01:54]} Nf6 {[%emt 0:01:21]} 6. c4 {[%emt 0:00:37]} dxc4 {[%emt 0:07:09]} 7. Bxc4 {[%emt 0:00:34]} O-O {[%emt 0:00:21]} 8. h3 {[%emt 0:02:19]} Nbd7 {[%emt 0:04:18]} 9. d4 {[%emt 0:05:55]} e4 {[%emt 0:09:06]} 10. Nfd2 {[%emt 0:00:41]} Nb6 {[%emt 0:00:42]} 11. Nc3 {[%emt 0:03:02]} a6 {[%emt 0:15:24]} 12. Qe2 {[%emt 0:07:07]} c6 {[%emt 0:03:50]} 13. Bb3 {[%emt 0:01:54]} h6 {[%emt 0:01:45]} 14. Nc4 {[%emt 0:02:47]} Nxc4 {[%emt 0:01:09]} 15. Bxc4 {[%emt 0:00:21]} b5 {[%emt 0:05:49]} 16. Bb3 {[%emt 0:03:36]} Be6 {[%emt 0:01:43]} 17. Qc2 {[%emt 0:05:52]} Rfc8 {[%emt 0:00:35]} 18. O-O {[%emt 0:03:42]} a5 {[%emt 0:05:05]} 19. Bxe6 {[%emt 0:09:05]} Qxe6 {[%emt 0:00:19]} 20. Na2 {[%emt 0:09:33]} axb4 {[%emt 0:09:31]} 21. Nxb4 {[%emt 0:00:41]} Bxb4 {[%emt 0:00:25]} 22. axb4 {[%emt 0:00:12]} Nd5 {[%emt 0:00:12]} 23. Bc3 {[%emt 0:03:18]} Nb6 {[%emt 0:04:01]} 24. Ra5 {[%emt 0:08:18]} Nc4 {[%emt 0:00:43]} 25. Rxa8 {[%emt 0:01:07]} Rxa8 {[%emt 0:00:04]} 26. Ra1 {[%emt 0:00:39]} Rxa1+ {[%emt 0:01:11]} 27. Bxa1 {[%emt 0:00:02]} Qd5 {[%emt 0:04:30]} 28. Bc3 {[%emt 0:02:13]} Kh7 {[%emt 0:00:53]} 29. Be1 {[%emt 0:02:51]} f5 {[%emt 0:00:36]} 30. g3 {[%emt 0:02:48]} Kg6 {[%emt 0:01:41]} 31. Qe2 {[%emt 0:03:07]} Nd6 {[%emt 0:02:13]} 32. Qc2 {[%emt 0:03:53]} Kf6 {[%emt 0:01:30]} 33. Qb2 {[%emt 0:00:38]} Nf7 {[%emt 0:00:47]} 34. h4 {[%emt 0:01:44]} g5 {[%emt 0:00:48]} 35. Qe2 {[%emt 0:01:37]} Kg6 {[%emt 0:00:05]} 36. Qd1 {[%emt 0:01:18]} Ne5 {[%emt 0:01:14]} 37. h5+ {[%emt 0:01:56]} Kg7 {[%emt 0:00:32]} 38. Qa1 {[%emt 0:02:22]} Nf3+ {[%emt 0:00:30]} 39. Kg2 {[%emt 0:01:17]} g4 {[%emt 0:03:44]} 40. Bc3 {[%emt 0:02:06]} Ng5 {[%emt 0:04:39]} 41. Qa7+ {[%emt 0:33:17]} Nf7 {[%emt 0:31:28]} 42. Ba1 {[%emt 0:02:39]} Kf6 {[%emt 0:01:33]} 43. Qa8 {[%emt 0:00:00]} Kg5 {[%emt 0:00:00]} 44. Qg8+ {[%emt 0:00:00]} Kxh5 {[%emt 0:00:00]} 45. Bc3 {[%emt 0:00:00]} Nd8 {[%emt 0:00:00]} 46. Qg7 {[%emt 0:00:00]} Ne6 {[%emt 0:00:00]} 47. Qf6 {[%emt 0:00:00]} Nc7 {[%emt 0:00:00]} 48. Qg7 {[%emt 0:00:00]} Ne8 {[%emt 0:00:00]} 49. Qe7 {[%emt 0:00:00]} Nd6 {[%emt 0:00:00]} 50. Qf6 {[%emt 0:00:00]} Nf7 {[%emt 0:00:00]} 51. Kh2 {[%emt 0:00:00]} Ng5 {[%emt 0:00:00]} 52. Kg2 {[%emt 0:00:00]} Qe6 {[%emt 0:00:00]} 53. Qg7 {[%emt 0:00:00]} Qf7 {[%emt 0:00:00]} 54. Qh8 {[%emt 0:00:30]} Qd5 {[%emt 0:00:00]} 55. Qe8+ {[%emt 0:01:12]} Nf7 {[%emt 0:00:00]} 56. Qg8 {[%emt 0:00:18]} Nd6 {[%emt 0:00:00]} 57. Qg7 {[%emt 0:01:12]} Nc4 {[%emt 0:00:43]} 58. Qf6 {[%emt 0:00:55]} Nb6 {[%emt 0:01:04]} 59. Kh2 {[%emt 0:00:35]} Qd7 {[%emt 0:03:05]} 60. Qf8 {[%emt 0:01:17]} Nd5 {[%emt 0:00:41]} 61. Bd2 {[%emt 0:01:16]} Kg5 {[%emt 0:01:06]} 62. Qg8+ {[%emt 0:00:50]} Kf6 {[%emt 0:00:29]} 63. Qf8+ {[%emt 0:00:40]} Kg6 {[%emt 0:00:13]} 64. Qg8+ {[%emt 0:00:25]} Kf6 {[%emt 0:02:03]} 65. Qf8+ {[%emt 0:00:17]} Ke6 {[%emt 0:00:28]} 66. Qxh6+ {[%emt 0:00:41]} Ke7 {[%emt 0:00:05]} 67. Qg5+ {[%emt 0:00:30]} Kd6 {[%emt 0:00:16]} 68. Kg2 {[%emt 0:00:40]} Kc7 {[%emt 0:00:20]} 69. Qg6 {[%emt 0:00:44]} Kb6 {[%emt 0:00:42]} 70. Be1 {[%emt 0:01:00]} Nc7 {[%emt 0:00:53]} 71. Qg8 {[%emt 0:00:42]} Kb7 {[%emt 0:00:19]} 72. Qf8 {[%emt 0:00:46]} Qd5 {[%emt 0:00:19]} 73. Qf6 {[%emt 0:00:59]} Qd7 {[%emt 0:01:16]} 74. Qf8 {[%emt 0:00:34]} Qe6 {[%emt 0:00:20]} 75. Qg7 {[%emt 0:01:33]} Kb6 {[%emt 0:02:06]} 76. Qf8 {[%emt 0:00:00]} Kb7 {[%emt 0:00:25]} 77. Qg7 {[%emt 0:00:00]} Qd5 {[%emt 0:00:08]} 78. Qf8 {[%emt 0:00:29]} Ne6 {[%emt 0:00:46]} 79. Qe7+ {[%emt 0:00:00]} Kc8 {[%emt 0:00:00]} 80. Qe8+ {[%emt 0:00:14]} Kc7 {[%emt 0:00:00]} 81. Qe7+ {[%emt 0:00:35]} Kc8 {[%emt 0:00:29]} 82. Qe8+ {[%emt 0:00:13]} Nd8 {[%emt 0:00:04]} 83. Qe7 {[%emt 0:00:29]} Qd7 {[%emt 0:01:51]} 84. Qf6 {[%emt 0:00:41]} Qd5 {[%emt 0:01:25]} 85. Qe7 {[%emt 0:00:19]} Nb7 {[%emt 0:00:14]} 86. Qg7 {[%emt 0:00:57]} Nd6 {[%emt 0:00:25]} 87. Qf8+ {[%emt 0:00:25]} Kd7 {[%emt 0:00:09]} 88. Qg7+ {[%emt 0:00:15]} Ke8 {[%emt 0:00:31]} 89. Qc7 {[%emt 0:00:28]} Nf7 {[%emt 0:00:45]} 90. Qc8+ {[%emt 0:00:53]} Ke7 {[%emt 0:00:12]} 91. Qg8 {[%emt 0:00:40]} Kf6 {[%emt 0:01:15]} 92. Qe8 {[%emt 0:00:41]} Qe6 {[%emt 0:01:47]} 93. Qf8 {[%emt 0:00:15]} Qd6 {[%emt 0:00:10]} 94. Qe8 {[%emt 0:00:36]} Qd5 {[%emt 0:00:09]} 95. Qf8 {[%emt 0:00:21]} Ke6 {[%emt 0:00:33]} 96. Qe8+ {[%emt 0:00:44]} Kd6 {[%emt 0:00:12]} 97. Qf8+ {[%emt 0:00:33]} Kd7 {[%emt 0:00:09]} 98. Qb8 {[%emt 0:00:36]} Nd6 {[%emt 0:00:31]} 99. Qa7+ {[%emt 0:00:24]} Ke6 {[%emt 0:00:28]} 100. Qc7 {[%emt 0:00:27]} Ne8 {[%emt 0:02:15]} 101. Qc8+ {[%emt 0:00:12]} Ke7 {[%emt 0:00:10]} 102. Qb7+ {[%emt 0:00:17]} Qd7 {[%emt 0:00:09]} 103. Qb8 {[%emt 0:00:40]} Nc7 {[%emt 0:00:36]} 104. Qg8 {[%emt 0:00:46]} Qe6 {[%emt 0:00:20]} 105. Qg7+ {[%emt 0:00:45]} Qf7 {[%emt 0:00:25]} 106. Qe5+ {[%emt 0:00:17]} Kd7 {[%emt 0:00:04]} 107. Qc5 {[%emt 0:00:44]} Nd5 {[%emt 0:00:53]} 108. Qa7+ {[%emt 0:00:16]} Ke6 {[%emt 0:00:08]} 109. Qb8 {[%emt 0:00:17]} Qc7 {[%emt 0:00:34]} 110. Qf8 {[%emt 0:00:18]} Ne7 {[%emt 0:00:48]} 111. Qh6+ {[%emt 0:01:07]} Kd5 {[%emt 0:00:23]} 112. Qh8 {[%emt 0:01:17]} Qd6 {[%emt 0:01:12]} 113. Qa8 {[%emt 0:00:28]} Ke6 {[%emt 0:00:16]} 114. Qe8 {[%emt 0:00:19]} Kf6 {[%emt 0:00:36]} 115. Qf8+ {[%emt 0:00:26]} Ke6 {[%emt 0:00:26]} 116. Qe8 {[%emt 0:00:08]} Kf6 {[%emt 0:00:05]} 117. Qf8+ {[%emt 0:00:05]} Ke6 {[%emt 0:00:05]} 1/2-1/2

[Event "41st Jacques-Lemans-Open 2022"]
[Site "St. Veit/Glan"]
[Date "2022.07.16"]
[Round "9.5"]
[White "Rogic, Davor"]
[Black "Ofner, Maximilian"]
[Result "1/2-1/2"]
[ECO "B19"]
[WhiteElo "2474"]
[BlackElo "2194"]
[Annotator "ChessBase"]
[PlyCount "114"]
[EventDate "2022.07.09"]
[EventType "swiss"]
[EventCountry "AUT"]
[SourceTitle "playchess.com"]
[Source "ChessBase"]
[SourceQuality "1"]
[TimeControl "40/5400+30:1800+30"]

1. e4 {[%emt 0:00:19]} c6 {[%emt 0:00:15]} 2. d4 {[%emt 0:00:12]} d5 {[%emt 0:00:04]} 3. Nd2 {[%emt 0:00:11]} dxe4 {[%emt 0:00:05]} 4. Nxe4 {[%emt 0:00:07]} Bf5 {[%emt 0:00:05]} 5. Ng3 {[%emt 0:00:15]} Bg6 {[%emt 0:00:06]} 6. Nf3 {[%emt 0:00:26]} Nd7 {[%emt 0:00:14]} 7. h4 {[%emt 0:00:18]} h6 {[%emt 0:00:06]} 8. h5 {[%emt 0:00:09]} Bh7 {[%emt 0:00:04]} 9. Bd3 {[%emt 0:00:10]} Bxd3 {[%emt 0:00:10]} 10. Qxd3 {[%emt 0:00:08]} e6 {[%emt 0:00:14]} 11. Bd2 {[%emt 0:00:21]} Ngf6 {[%emt 0:00:23]} 12. O-O-O {[%emt 0:00:39]} Be7 {[%emt 0:00:08]} 13. Kb1 {[%emt 0:01:28]} O-O {[%emt 0:01:02]} 14. Ne4 {[%emt 0:00:13]} Nxe4 {[%emt 0:00:17]} 15. Qxe4 {[%emt 0:00:06]} Nf6 {[%emt 0:00:08]} 16. Qe2 {[%emt 0:00:34]} Qd5 {[%emt 0:00:09]} 17. Be3 {[%emt 0:00:26]} Bd6 {[%emt 0:02:12]} 18. Rh4 b5 {[%emt 0:07:04]} 19. g4 {[%emt 0:11:23]} Ne4 {[%emt 0:07:26]} 20. Ne1 {[%emt 0:07:56]} b4 {[%emt 0:06:13]} 21. Nd3 {[%emt 0:06:36]} Rfb8 {[%emt 0:08:12]} 22. Ka1 {[%emt 0:03:13]} Rb5 {[%emt 0:09:12]} 23. Rhh1 {[%emt 0:06:51]} a5 {[%emt 0:05:26]} 24. Nc5 {[%emt 0:25:51]} a4 {[%emt 0:07:38]} 25. Nxe4 {[%emt 0:02:40]} Qxe4 {[%emt 0:02:42]} 26. f3 {[%emt 0:01:42]} Qd5 {[%emt 0:01:48]} 27. f4 {[%emt 0:03:40]} Qe4 {[%emt 0:10:03]} 28. Rhf1 {[%emt 0:08:15]} b3 {[%emt 0:05:35]} 29. Qd3 {[%emt 0:01:35]} Qxd3 {[%emt 0:04:47]} 30. Rxd3 {[%emt 0:00:05]} bxa2 {[%emt 0:05:31]} 31. Kxa2 {[%emt 0:01:57]} Rab8 {[%emt 0:00:22]} 32. Bc1 {[%emt 0:00:44]} c5 {[%emt 0:02:58]} 33. dxc5 {[%emt 0:02:54]} Bxc5 {[%emt 0:00:09]} 34. Rfd1 {[%emt 0:00:23]} Be7 {[%emt 0:00:59]} 35. Rd7 {[%emt 0:04:56]} Bf6 {[%emt 0:00:21]} 36. R1d3 {[%emt 0:00:14]} Rxb2+ {[%emt 0:07:24]} 37. Bxb2 {[%emt 0:01:49]} Rxb2+ {[%emt 0:00:05]} 38. Ka3 {[%emt 0:00:04]} Rxc2 {[%emt 0:00:11]} 39. Rg3 {[%emt 0:01:12]} e5 {[%emt 0:05:41]} 40. fxe5 {[%emt 0:03:35]} Bxe5 {[%emt 0:00:14]} 41. Re3 {[%emt 0:31:09]} Rc3+ {[%emt 0:09:18]} 42. Rxc3 {[%emt 0:00:00]} Bxc3 {[%emt 0:00:03]} 43. Rd8+ {[%emt 0:00:00]} Kh7 {[%emt 0:00:13]} 44. Rf8 {[%emt 0:00:00]} f6 {[%emt 0:03:14]} 45. Kxa4 {[%emt 0:00:00]} Be5 {[%emt 0:00:52]} 46. Kb5 {[%emt 0:00:00]} Bd6 {[%emt 0:01:55]} 47. Rd8 {[%emt 0:00:00]} Bg3 {[%emt 0:02:46]} 48. Re8 {[%emt 0:00:00]} f5 {[%emt 0:03:21]} 49. gxf5 {[%emt 0:00:00]} Bh4 {[%emt 0:00:05]} 50. Rf8 {[%emt 0:00:00]} Be7 {[%emt 0:00:15]} 51. Rf7 {[%emt 0:00:00]} Bg5 {[%emt 0:00:13]} 52. Kc6 {[%emt 0:00:00]} Kg8 {[%emt 0:00:12]} 53. Rb7 {[%emt 0:00:00]} Bf6 {[%emt 0:00:27]} 54. Kd5 {[%emt 0:00:00]} Kh7 {[%emt 0:01:52]} 55. Rb3 {[%emt 0:00:00]} Ba1 {[%emt 0:00:44]} 56. Rb6 {[%emt 0:00:00]} Bc3 {[%emt 0:00:35]} 57. Ra6 {[%emt 0:00:00]} Bb2 {[%emt 0:00:14]} 1/2-1/2

[Event "41st Jacques-Lemans-Open 2022"]
[Site "St. Veit/Glan"]
[Date "2022.07.16"]
[Round "9.6"]
[White "Schernthaner, David"]
[Black "Hoffmann, Sebastian"]
[Result "1-0"]
[ECO "D10"]
[WhiteElo "2319"]
[BlackElo "2148"]
[Annotator "ChessBase"]
[PlyCount "55"]
[EventDate "2022.07.09"]
[EventType "swiss"]
[EventCountry "AUT"]
[SourceTitle "playchess.com"]
[Source "ChessBase"]
[SourceQuality "1"]
[TimeControl "40/5400+30:1800+30"]

1. d4 {[%emt 0:00:02]} d5 {[%emt 0:00:18]} 2. c4 {[%emt 0:00:05]} c6 {[%emt 0:00:02]} 3. Nc3 {[%emt 0:00:04]} Nf6 {[%emt 0:00:04]} 4. e3 {[%emt 0:00:03]} Bf5 {[%emt 0:00:05]} 5. cxd5 {[%emt 0:01:13]} cxd5 {[%emt 0:00:05]} 6. Qb3 {[%emt 0:00:04]} Nc6 {[%emt 0:00:05]} 7. Qxb7 {[%emt 0:00:59]} Bd7 {[%emt 0:00:09]} 8. Qb3 {[%emt 0:00:06]} Rb8 {[%emt 0:00:04]} 9. Qd1 {[%emt 0:00:04]} e5 {[%emt 0:00:09]} 10. dxe5 {[%emt 0:14:04]} Nxe5 {[%emt 0:00:05]} 11. Be2 {[%emt 0:00:29]} Bd6 {[%emt 0:00:05]} 12. Nf3 {[%emt 0:01:07]} Qc7 {[%emt 0:00:04]} 13. h3 {[%emt 0:04:30]} O-O {[%emt 0:00:05]} 14. O-O {[%emt 0:03:06]} Nxf3+ {[%emt 0:00:05]} 15. Bxf3 {[%emt 0:00:17]} Rfd8 {[%emt 0:00:04]} 16. Ne2 {[%emt 0:13:05]} Rb4 {[%emt 0:20:59]} 17. Nd4 {[%emt 0:03:00]} Qc8 {[%emt 0:09:10]} 18. b3 {[%emt 0:07:26]} Rb6 {[%emt 0:02:24]} 19. Bd2 {[%emt 0:03:33]} Re8 {[%emt 0:12:17]} 20. Rc1 {[%emt 0:01:29]} Qb8 {[%emt 0:04:11]} 21. Bc3 {[%emt 0:04:23]} Ne4 {[%emt 0:05:56]} 22. Bxe4 {[%emt 0:01:52]} dxe4 {[%emt 0:01:01]} 23. f4 {[%emt 0:02:18]} exf3 {[%emt 0:01:23]} 24. Qxf3 {[%emt 0:01:28]} Bh2+ {[%emt 0:22:16]} 25. Kh1 {[%emt 0:02:16]} Rf6 {[%emt 0:00:58]} 26. Qd5 {[%emt 0:02:04]} Qd6 {[%emt 0:05:24]} 27. Qxd6 {[%emt 0:02:04]} Rxf1+ {[%emt 0:00:01]} 28. Kxh2 {[%emt 0:00:22]} 1-0

[Event "41st Jacques-Lemans-Open 2022"]
[Site "St. Veit/Glan"]
[Date "2022.07.16"]
[Round "9.7"]
[White "Lerch, Johannes"]
[Black "Huber, Benedikt"]
[Result "1/2-1/2"]
[ECO "A06"]
[WhiteElo "2222"]
[BlackElo "2289"]
[Annotator "ChessBase"]
[PlyCount "21"]
[EventDate "2022.07.09"]
[EventType "swiss"]
[EventCountry "AUT"]
[SourceTitle "playchess.com"]
[Source "ChessBase"]
[SourceQuality "1"]
[TimeControl "40/5400+30:1800+30"]

1. Nf3 {[%emt 0:00:03]} d5 {[%emt 0:00:08]} 2. c4 e6 3. e3 {[%emt 0:00:32]} Nf6 {[%emt 0:01:02]} 4. Nc3 {[%emt 0:00:28]} Be7 {[%emt 0:00:39]} 5. b3 {[%emt 0:00:20]} dxc4 {[%emt 0:00:19]} 6. Bxc4 {[%emt 0:04:30]} a6 {[%emt 0:00:08]} 7. O-O {[%emt 0:03:27]} b5 {[%emt 0:01:21]} 8. Be2 {[%emt 0:01:05]} Bb7 {[%emt 0:01:00]} 9. d4 {[%emt 0:01:11]} O-O {[%emt 0:02:49]} 10. Bb2 {[%emt 0:04:10]} Nbd7 {[%emt 0:04:47]} 11. Rc1 {[%emt 0:02:44]} 1/2-1/2

[Event "41st Jacques-Lemans-Open 2022"]
[Site "St. Veit/Glan"]
[Date "2022.07.16"]
[Round "9.8"]
[White "Sandhoefner, Florian"]
[Black "Navaratnam, Rohan Shan Tze"]
[Result "1/2-1/2"]
[ECO "C07"]
[WhiteElo "2289"]
[BlackElo "2071"]
[Annotator "ChessBase"]
[PlyCount "74"]
[EventDate "2022.07.09"]
[EventType "swiss"]
[EventCountry "AUT"]
[SourceTitle "playchess.com"]
[Source "ChessBase"]
[SourceQuality "1"]
[TimeControl "40/5400+30:1800+30"]

1. e4 {[%emt 0:00:01]} e6 {[%emt 0:00:09]} 2. d4 {[%emt 0:00:05]} d5 {[%emt 0:00:03]} 3. Nd2 {[%emt 0:00:05]} c5 {[%emt 0:00:05]} 4. exd5 {[%emt 0:00:05]} Qxd5 {[%emt 0:00:03]} 5. Ngf3 {[%emt 0:00:07]} cxd4 {[%emt 0:00:04]} 6. Bc4 {[%emt 0:00:06]} Qd6 {[%emt 0:00:04]} 7. O-O {[%emt 0:00:06]} Nf6 {[%emt 0:00:03]} 8. Nb3 {[%emt 0:00:04]} Nc6 {[%emt 0:00:04]} 9. Nbxd4 {[%emt 0:00:08]} Nxd4 {[%emt 0:00:06]} 10. Nxd4 {[%emt 0:00:06]} Be7 {[%emt 0:00:06]} 11. Re1 {[%emt 0:00:24]} O-O {[%emt 0:00:28]} 12. b3 {[%emt 0:00:15]} b6 {[%emt 0:07:19]} 13. Bb2 {[%emt 0:02:15]} Qc7 {[%emt 0:02:48]} 14. Qe2 {[%emt 0:04:30]} Bc5 {[%emt 0:02:12]} 15. Nb5 {[%emt 0:07:02]} Qe7 {[%emt 0:04:07]} 16. Bd4 {[%emt 0:03:57]} a6 {[%emt 0:04:20]} 17. Bxc5 {[%emt 0:01:19]} Qxc5 {[%emt 0:00:04]} 18. Nc3 {[%emt 0:00:18]} Bb7 {[%emt 0:02:29]} 19. a4 {[%emt 0:01:59]} Rfd8 {[%emt 0:09:58]} 20. Rad1 {[%emt 0:01:53]} h5 {[%emt 0:02:15]} 21. h3 {[%emt 0:04:18]} Qg5 {[%emt 0:06:52]} 22. f3 {[%emt 0:01:19]} Rac8 {[%emt 0:06:05]} 23. Qf2 {[%emt 0:10:36]} Qa5 {[%emt 0:05:09]} 24. Qe3 {[%emt 0:02:44]} h4 {[%emt 0:01:10]} 25. Rxd8+ {[%emt 0:05:58]} Rxd8 {[%emt 0:00:02]} 26. Rd1 {[%emt 0:00:39]} Rxd1+ {[%emt 0:00:56]} 27. Nxd1 {[%emt 0:00:02]} b5 {[%emt 0:00:58]} 28. axb5 {[%emt 0:02:08]} axb5 {[%emt 0:00:03]} 29. Bf1 {[%emt 0:01:55]} Nd5 {[%emt 0:03:52]} 30. Qf2 {[%emt 0:00:57]} Qa1 {[%emt 0:12:58]} 31. Ne3 {[%emt 0:01:36]} Qc1 {[%emt 0:00:20]} 32. Nxd5 {[%emt 0:01:17]} Bxd5 {[%emt 0:00:01]} 33. Qxh4 {[%emt 0:02:33]} Qxc2 {[%emt 0:00:03]} 34. Qd8+ {[%emt 0:00:14]} Kh7 {[%emt 0:00:02]} 35. Qh4+ {[%emt 0:00:09]} Kg8 {[%emt 0:00:02]} 36. Qd8+ {[%emt 0:00:07]} Kh7 {[%emt 0:00:02]} 37. Qh4+ {[%emt 0:00:10]} Kg8 {[%emt 0:00:52]} 1/2-1/2